[Event "SixDays Budapest March GM A 2025"]
[Site "Budapest"]
[Date "2025.03.26"]
[Round "5.1"]
[White "Jake Shanty"]
[Black "Moldagali, Beksultan"]
[Result "0-1"]
[Annotator "TA"]
[ECO "A05"]
[WhiteElo "2336"]
[BlackElo "2398"]
[PlyCount "60"]
[EventDate "2025.03.23"]
[EventCountry "HUN"]
[SourceTitle "playchess.com"]
[Source "ChessBase"]
[SourceQuality "1"]
[TimeControl "5400+30"]

{[%evp 14,60,-10,-25,5,-5,-4,-6,2,-21,8,8,41,33,28,20,12,11,38,40,61,62,81,62,73,59,63,62,58,49,72,63,82,52,72,70,83,75,20,45,64,59,63,-34,-29,-152,-128,-723,-695]} 1. Nf3 {[%emt 0:00:05]} Nf6 {[%emt 0:01:10]} 2. g3 {[%emt 0:00:20]} d5 {[%emt 0:01:02]} 3. Bg2 {[%emt 0:00:15]} e6 {[%emt 0:02:01]} 4. O-O {[%emt 0:01:32]} Be7 {[%emt 0:01:30]} 5. b3 {[%emt 0:06:07]} O-O {[%emt 0:00:42]} 6. Bb2 {[%emt 0:01:47]} c5 {[%emt 0:00:11]} 7. e3 {[%emt 0:04:14]} Nc6 {[%emt 0:02:48]} 8. d4 {[%emt 0:01:57]} b6 {[%emt 0:01:53] D02: 1 d4 d5 2 Nf3 sidelines, including 2...Nf6 3 g3 and 2...Nf6 3 Bf4.} 9. Nbd2 {[%emt 0:06:21]} Ba6 {[%emt 0:00:50]} 10. Re1 {[%emt 0:01:56]} Rc8 {[%emt 0:00:39] The position is equal.} 11. a3 {[%emt 0:04:36]} Re8 {[%emt 0:06:55]} 12. Rc1 {[%emt 0:15:14]} Qc7 $146 {[%emt 0:10:27]} ({Predecessor:} 12... cxd4 13. exd4 Na5 14. Ne5 Nd7 15. f4 g6 16. Ndf3 Bf6 17. g4 Bg7 18. Nxd7 Qxd7 {0-1 Giap,X-Nguyen,T VIE-chT Hue 1999 (7)}) 13. dxc5 {[%emt 0:10:22]} bxc5 {[%emt 0:05:07]} 14. c4 {[%emt 0:00:15]} Qb6 {[%emt 0:02:23]} 15. Qc2 {[%emt 0:14:58]} Red8 {[%emt 0:06:28]} 16. cxd5 {[%emt 0:04:31]} Nxd5 {[%emt 0:02:30]} 17. Nc4 {[%emt 0:08:25]} Bxc4 {[%emt 0:07:25]} 18. bxc4 {[%emt 0:00:31]} (18. Qxc4 $6 Na5 19. Qg4 g6 $11) 18... Nf6 {[%emt 0:00:10][%cal Bd5f6,Bf6d7,Bd7e5,Be5g4][%mdl 32]} 19. Rb1 {[%emt 0:08:04]} Qc7 {[%emt 0:01:16]} 20. Ng5 {[%emt 0:02:26] and Bxf6 should not be overlooked} h6 {[%emt 0:03:35]} 21. Ne4 {[%emt 0:02:49]} Nd7 {[%emt 0:06:19]} 22. Red1 {[%emt 0:01:01]} Bf8 {[%emt 0:00:34]} 23. Nc3 {[%emt 0:01:24]} a6 {[%emt 0:01:29] Against Nb5} 24. Qa4 {[%emt 0:00:51]} Nde5 {[%emt 0:01:40]} 25. Rxd8 {[%emt 0:00:58]} Qxd8 {[%emt 0:04:04]} 26. f4 {[%emt 0:01:14]} Ng4 {[%emt 0:00:02][%cal Od8d2]} 27. Re1 {[%emt 0:01:02]} (27. Bxc6 $2 Qd2 28. Nd1 (28. Bg2 Qxe3+ 29. Kh1 Nf2+ 30. Kg1 Nd1+ 31. Kh1 Qe1+) 28... Rd8 $19 (28... Nxh2 $2 29. Bc3 $18) (28... Qxh2+ $2 29. Kf1 $19)) 27... Rb8 {[%emt 0:01:13][%cal Bc8b8,Bb8b1,Bb1c1][%mdl 32]} 28. Bc1 {[%emt 0:00:36]} ({Better is} 28. Rd1 $1 $14 Qb6 29. Rb1) 28... Qd3 $15 {[%emt 0:00:33]} 29. Ne4 {[%emt 0:00:22] [#]} (29. Nd1 $1 $11) 29... Rb1 $1 $17 {[%emt 0:00:35][%cal Ob1c1] White must now prevent ...Rxc1!. Black is more active.} 30. h3 $2 {[%emt 0:00:44][%mdl 8192] [#]} (30. Qxc6 $2 {is the wrong capture.} Rxc1 (30... Nxe3 31. Bf1 $15) 31. Rf1 Qe2 $19 (31... Qxc4 $2 32. Nd2 $19) (31... Rxc4 $2 32. Nf2 $19) (31... Qxe3+ $2 32. Kh1 $19) (31... Qxa3 $2 32. h4 $19)) (30. Nf2 $17 Qc3 31. Rd1 Rxc1 (31... Nxe3 $2 32. Bxe3 Rxd1+ 33. Nxd1 $18) 32. Nxg4 Rxd1+ (32... Qxc4 $2 33. Qxc4 Rxc4 34. Bxc6 $18) 33. Qxd1) (30. Qd1 Qxd1) 30... Rxc1 $1 {[%emt 0:00:08][%mdl 512] Weighted Error Value: White=0.41/Black=0.12 (very precise)   Loses game:     	White=1     	---        Mistake:       	White=2     	---        Inaccurate:     	White=1     	Black=3      OK:         	White=9     	Black=6      Best:        	White=1     	---        Strong:       	---       	Black=1      Brilliant:      	---       	Black=1} 0-1

[Event "SixDays Budapest March GM A 2025"]
[Site "Budapest"]
[Date "2025.03.26"]
[Round "5.2"]
[White "Zia, Tahsin Tajwar"]
[Black "Uskov, Artem"]
[Result "0-1"]
[Annotator "TA"]
[ECO "B47"]
[WhiteElo "2327"]
[BlackElo "2461"]
[PlyCount "98"]
[EventDate "2025.03.23"]
[EventCountry "HUN"]
[SourceTitle "playchess.com"]
[Source "ChessBase"]
[SourceQuality "1"]
[TimeControl "5400+30"]

{[%evp 11,98,41,41,33,53,31,31,24,33,33,38,13,29,-17,35,-16,27,25,36,28,49,20,26,26,33,-14,-17,0,0,-12,0,0,17,-8,-6,-18,0,-14,-23,-16,-2,4,25,17,26,8,8,12,21,-3,53,-177,-157,-191,-191,-191,-191,-191,-191,-191,-186,-179,-175,-185,-177,-318,-318,-318,-309,-278,-263,-263,-264,-357,-316,-314,-305,-535,-535,-531,-525,-5118,-4622,-5600,-4710,-29978,-5122,-5114,-5114]} 1. e4 {[%emt 0:05:44]} c5 {[%emt 0:10:45]} 2. Nc3 {[%emt 0:01:52]} Nc6 {[%emt 0:00:28]} 3. Nf3 {[%emt 0:00:19]} e6 {[%emt 0:00:16]} 4. d4 {[%emt 0:00:37]} cxd4 {[%emt 0:00:07]} 5. Nxd4 {[%emt 0:00:05]} Qc7 {[%emt 0:00:09]} 6. Be2 {[%emt 0:00:52]} a6 {[%emt 0:00:43]} 7. Nxc6 {[%emt 0:00:49] B47: Sicilian: Taimanov: 5 Nc3 Qc7 6 f4, 6 g3 and 6 Be2.} bxc6 {[%emt 0:04:07]} 8. Qd3 {[%emt 0:00:22]} Nf6 {[%emt 0:05:17]} 9. Qg3 {[%emt 0:00:28] White is slightly better.} Qxg3 {[%emt 0:00:17]} 10. hxg3 {[%emt 0:00:05]} d5 {[%emt 0:01:39]} 11. g4 {[%emt 0:00:26]} Bb7 {[%emt 0:15:03]} 12. g5 {[%emt 0:10:47]} (12. exd5 cxd5 13. Be3) 12... Nd7 {[%emt 0:00:17]} ({Black should play} 12... Nxe4 $11 13. Nxe4 dxe4) 13. f4 $146 {[%emt 0:05:55]} (13. f3 $14) ({Predecessor:} 13. Be3 Bc5 14. Bxc5 Nxc5 15. O-O-O Ke7 16. Rh4 h6 17. Rdh1 Nxe4 18. Nxe4 dxe4 19. gxh6 Rxh6 20. Rxh6 gxh6 21. Rxh6 {0-1 Rog,B (2239)-Moranda,W (2564) POL-ch sf Karpacz 2023 (4)}) 13... O-O-O {[%emt 0:05:36]} 14. Bf3 {[%emt 0:09:01]} g6 {[%emt 0:03:48]} 15. Be3 {[%emt 0:03:29]} Bg7 {[%emt 0:00:45]} 16. O-O-O {[%emt 0:00:49]} h6 {[%emt 0:00:11] [#]} 17. f5 $1 {[%emt 0:09:06][%cal Rg5h6]} gxf5 {[%emt 0:11:08]} (17... hxg5 18. Bxg5) 18. exf5 {[%emt 0:00:35]} (18. gxh6 $14 {is more appropriate.} Bxc3 19. bxc3 dxe4 20. Bh5) 18... hxg5 $11 {[%emt 0:00:06] Threatening ...Rxh1.} 19. fxe6 {[%emt 0:05:05]} fxe6 {[%emt 0:00:27]} 20. Bxg5 {[%emt 0:00:55]} Bf6 {[%emt 0:00:31]} 21. Bxf6 {[%emt 0:01:32]} Nxf6 {[%emt 0:01:14]} 22. Rhe1 {[%emt 0:00:09]} Rde8 {[%emt 0:03:15]} 23. Na4 {[%emt 0:05:05]} Kc7 {[%emt 0:03:35]} 24. Nc5 {[%emt 0:12:26]} e5 {[%emt 0:00:44][%cal Be6e5,Be5e4][%mdl 32]} 25. Rf1 {[%emt 0:05:48]} Re7 {[%emt 0:05:06]} 26. c4 {[%emt 0:07:50]} Rd8 {[%emt 0:04:21]} 27. g4 {[%emt 0:10:57]} e4 {[%emt 0:03:22]} 28. g5 {[%emt 0:00:06]} Nd7 {[%emt 0:00:35]} 29. Nxd7 {[%emt 0:00:16]} Rexd7 {[%emt 0:04:59]} 30. Bh5 {[%emt 0:00:01]} d4 {[%emt 0:00:10]} (30... Rh7 $11 31. Bf7 Rg7) 31. Bf7 $2 {[%emt 0:01:18] Now White is beyond hope.} (31. g6 $14 {stays ahead.}) 31... e3 $19 {[%emt 0:02:21]} 32. g6 {[%emt 0:00:50] [#]} d3 $1 {[%emt 0:04:18]} (32... e2 33. g7 $15) 33. g7 {[%emt 0:00:13]} d2+ {[%emt 0:00:45]} 34. Rxd2 {[%emt 0:01:21]} exd2+ {[%emt 0:01:52]} (34... Rxd2 35. g8=Q Rxg8 36. Bxg8 $17) 35. Kd1 {[%emt 0:00:01]} Bc8 {[%emt 0:00:07]} 36. g8=Q {[%emt 0:00:36]} Rxg8 {[%emt 0:00:06]} 37. Bxg8 {[%emt 0:00:01][%mdl 4096] Endgame KRB-KRB} Rd4 {[%emt 0:00:24] Threatens to win with ...Bg4+.} 38. Rf7+ {[%emt 0:01:53]} (38. Rg1 {was forced.}) 38... Kb6 {[%emt 0:00:18] ( -> ...Bg4+)} 39. Rg7 {[%emt 0:01:40]} Bg4+ {[%emt 0:00:10]} 40. Rxg4 {[%emt 0:00:05]} Rxg4 {[%emt 0:00:04] KR-KB} 41. Be6 {[%emt 0:00:08]} Rd4 {[%emt 0:00:06]} 42. b4 {[%emt 0:00:17]} a5 {[%emt 0:00:46]} 43. a3 {[%emt 0:00:20]} Rd3 {[%emt 0:01:47]} 44. Bf5 $2 {[%emt 0:00:05]} (44. Bg4 {was necessary.}) 44... Rxa3 {[%emt 0:00:04]} 45. bxa5+ {[%emt 0:00:04]} Rxa5 {[%emt 0:00:03]} 46. Bd3 {[%emt 0:00:08]} Ra2 {[%emt 0:00:14]} 47. Bc2 {[%emt 0:00:05]} Kc5 {[%emt 0:00:06]} 48. Kxd2 {[%emt 0:00:08] [#]} Rxc2+ $1 {[%emt 0:00:09][%mdl 512]} 49. Kxc2 {[%emt 0:00:08]} Kxc4 {[%emt 0:00:04] Weighted Error Value: White=0.70/Black=0.10 (very precise)   Loses game:     	White=1     	---        Mistake:       	White=5     	Black=2      Inaccurate:     	White=3     	Black=2      OK:         	White=11    	Black=15     Best:        	White=2     	Black=4      Strong:       	---       	Black=1} 0-1

[Event "SixDays Budapest March GM A 2025"]
[Site "Budapest"]
[Date "2025.03.26"]
[Round "5.3"]
[White "Berczes, David"]
[Black "Pap, Misa"]
[Result "1/2-1/2"]
[Annotator "TA"]
[ECO "A37"]
[WhiteElo "2408"]
[BlackElo "2457"]
[PlyCount "33"]
[EventDate "2025.03.23"]
[EventCountry "HUN"]
[SourceTitle "playchess.com"]
[Source "ChessBase"]
[SourceQuality "1"]
[TimeControl "5400+30"]

{[%evp 15,20,4,18,8,64,8,20]} 1. c4 c5 2. Nc3 g6 3. g3 Bg7 4. Bg2 Nc6 5. Nf3 Nh6 6. O-O Nf5 7. d3 O-O {7...h5 is the fancy move.} 8. Bd2 d6 9. Rb1 {A37: Symmetrical English vs ...g6: 4 Bg2 Bg7 5 Nf3.} b6 (9... Rb8 $11) 10. a3 (10. g4 $14) 10... Bb7 {An uneventful encounter.   Weighted Error Value: White=0.40/Black=0.42  Mistake:       	White=1     	Black=1} {Predecessor:} 11. b4 $146 Qd7 12. bxc5 dxc5 13. Nd5 e6 14. Ne3 Nfd4 15. Nc2 Nxc2 16. Qxc2 e5 17. Bc3 {0-1 Demidov,M (2549)-Carlsen,M (2832) Titled Tuesday intern op 23rd Jul Late blitz 2024 (11)} 1/2-1/2

[Event "SixDays Budapest March GM A 2025"]
[Site "Budapest"]
[Date "2025.03.26"]
[Round "5.4"]
[White "Aczel, Gergely"]
[Black "Rohrer, Christophe"]
[Result "1-0"]
[Annotator "TA"]
[ECO "E45"]
[WhiteElo "2487"]
[BlackElo "2266"]
[PlyCount "127"]
[EventDate "2025.03.23"]
[EventCountry "HUN"]
[SourceTitle "playchess.com"]
[Source "ChessBase"]
[SourceQuality "1"]
[TimeControl "5400+30"]

{[%evp 17,127,27,31,23,33,5,1,-18,0,0,10,0,45,50,36,22,27,23,22,22,23,18,22,12,14,18,27,23,22,27,21,29,40,38,69,56,78,58,54,45,57,44,77,83,83,60,73,22,22,22,33,16,55,50,70,64,68,64,137,129,134,125,154,159,163,161,154,108,145,151,143,139,176,180,181,182,217,225,274,278,269,277,300,272,330,319,297,271,374,379,374,324,285,0,367,353,360,314,570,564,557,553,1549,1256,1452,1319,4921,2476,29958,29962,5222,5221]} 1. d4 {[%emt 0:00:02]} Nf6 {[%emt 0:00:07]} 2. c4 {[%emt 0:00:04]} e6 {[%emt 0:00:10]} 3. Nc3 {[%emt 0:00:17]} Bb4 {[%emt 0:00:10]} 4. e3 {[%emt 0:00:09]} b6 {[%emt 0:00:16]} 5. Nge2 {[%emt 0:00:37]} Ba6 {[%emt 0:00:46]} 6. a3 {[%emt 0:00:07]} Bxc3+ {[%emt 0:00:20]} 7. Nxc3 {[%emt 0:00:05]} d5 {[%emt 0:00:30]} 8. b3 {[%emt 0:05:56][%cal Bb2b3,Bb3c4,Bc4c5][%mdl 32]} O-O {[%emt 0:00:40]} 9. Be2 {[%emt 0:00:11]} c5 {[%emt 0:02:19] now scores much better than the old 9...Nc6.} 10. dxc5 {[%emt 0:01:51] E45: Nimzo-Indian: Rubinstein: 4...b6 5 Ne2 Ba6.} dxc4 {[%emt 0:00:42]} 11. bxc4 $146 {[%emt 0:01:08] Qxd8 poses a challenge} ({Predecessor:} 11. Qxd8 Rxd8 12. cxb6 cxb3 13. Rb1 axb6 14. Rxb3 Nbd7 15. Bxa6 Rxa6 16. Ke2 Nc5 17. Rb1 Nfe4 18. Nxe4 Nxe4 {½-½ Nakamura,H (2775)-Theodorou,N (2591) PRO League KO Stage rapid 2023 (1.2)}) 11... Qxd1+ {[%emt 0:04:50]} 12. Kxd1 {[%emt 0:01:13] The position is equal.} Nbd7 {[%emt 0:01:52] Black sacrificed a pawn} 13. cxb6 {[%emt 0:04:08]} Nxb6 {[%emt 0:02:05][%cal Of8c8]} 14. c5 {[%emt 0:02:10][%csl LRa6,LRb6]} Bxe2+ {[%emt 0:00:17]} 15. Kxe2 {[%emt 0:00:20]} Nbd7 {[%emt 0:02:54]} 16. f3 {[%emt 0:46:16]} Rfc8 {[%emt 0:04:08]} 17. e4 {[%emt 0:01:30]} Rxc5 {[%emt 0:00:46]} 18. Bd2 {[%emt 0:00:18]} Rac8 {[%emt 0:06:52]} 19. Rhc1 {[%emt 0:00:08]} Nb6 {[%emt 0:02:11]} 20. Nd1 {[%emt 0:01:33]} Nfd7 {[%emt 0:04:52]} 21. Ne3 {[%emt 0:00:28]} Rxc1 {[%emt 0:02:59]} 22. Rxc1 {[%emt 0:00:08]} Rxc1 {[%emt 0:00:15]} 23. Bxc1 $11 {[%emt 0:00:02][%mdl 4096] Endgame KBN-KNN} Kf8 {[%emt 0:01:41]} 24. Kd3 {[%emt 0:08:13]} Nc5+ {[%emt 0:14:20]} 25. Kc3 {[%emt 0:04:57]} Ke7 {[%emt 0:01:13]} 26. Nc4 $1 {[%emt 0:00:22]} f6 {[%emt 0:10:01]} 27. Be3 {[%emt 0:01:30]} Ncd7 {[%emt 0:01:05]} 28. Kb4 {[%emt 0:02:11]} Kd8 {[%emt 0:06:08]} 29. Nd6 {[%emt 0:02:09]} g6 {[%emt 0:01:47]} 30. Nb5 {[%emt 0:01:22] White is more active.} a5+ {[%emt 0:02:22]} 31. Kb3 {[%emt 0:04:41]} f5 {[%emt 0:02:59] [#]} 32. Nd6 {[%emt 0:04:44]} (32. Kc3 $1 $16) 32... Kc7 {[%emt 0:01:06]} 33. Nf7 {[%emt 0:01:29]} fxe4 {[%emt 0:03:35]} 34. fxe4 {[%emt 0:00:04]} Nf6 {[%emt 0:00:47]} 35. Ng5 {[%emt 0:00:13]} e5 {[%emt 0:02:22] Wards off Bd4} 36. Bd2 {[%emt 0:01:35]} a4+ {[%emt 0:00:46]} 37. Kb4 {[%emt 0:00:08]} h6 {[%emt 0:02:02] [#]} (37... Nbd7 $14) 38. Nf7 $1 $16 {[%emt 0:01:23][%csl LRe5,LRh6]} g5 {[%emt 0:01:44]} 39. Kb5 {[%emt 0:01:35]} (39. Nxe5 Nxe4 40. Be1 h5 $16) 39... Nbd7 {[%emt 0:01:18]} (39... Nxe4 $2 40. Ba5 $18) 40. Ba5+ {[%emt 0:00:21]} Kb7 {[%emt 0:00:30]} 41. Nd6+ {[%emt 0:00:48]} Ka7 {[%emt 0:00:16]} 42. Bd2 {[%emt 0:00:48]} ({White should try} 42. Bd8) 42... Nf8 {[%emt 0:01:49]} 43. Be3+ {[%emt 0:01:27]} Kb8 {[%emt 0:00:11]} 44. Kxa4 {[%emt 0:00:10]} Kc7 {[%emt 0:01:15]} 45. Nf7 {[%emt 0:01:16][%csl LRe5,LRh6]} Nxe4 {[%emt 0:00:31]} 46. Nxh6 {[%emt 0:00:24]} Ne6 {[%emt 0:00:30]} 47. Nf7 {[%emt 0:00:52]} Nc3+ {[%emt 0:01:20]} 48. Kb3 {[%emt 0:00:18]} Nd5 {[%emt 0:00:12]} 49. Bxg5 {[%emt 0:00:54]} (49. Nxg5 Nxe3 50. Nxe6+ Kd6 $11) 49... e4 {[%emt 0:00:38]} 50. Kc4 {[%emt 0:00:39]} Nb6+ {[%emt 0:00:11]} 51. Kc3 {[%emt 0:00:20]} Nd5+ {[%emt 0:02:06]} 52. Kd2 {[%emt 0:00:10]} Nd4 {[%emt 0:00:31]} 53. h4 {[%emt 0:02:34][%cal Bh2h4,Bh4h5][%mdl 32]} Nb3+ {[%emt 0:00:44]} 54. Kc2 {[%emt 0:00:20]} Nd4+ {[%emt 0:00:04]} 55. Kd2 {[%emt 0:00:05]} Nb3+ $1 {[%emt 0:00:05]} 56. Ke2 {[%emt 0:01:09]} Nd4+ {[%emt 0:00:19]} 57. Kf2 {[%emt 0:00:02]} Nc2 $2 {[%emt 0:00:27]} (57... e3+ {was worth a try.} 58. Bxe3 Nxe3 59. Kxe3 Nf5+ 60. Kf4 Nxh4) 58. h5 $18 {[%emt 0:00:49]} e3+ {[%emt 0:00:03]} 59. Ke2 {[%emt 0:00:31] Hoping for h6.} Nc3+ {[%emt 0:02:33]} 60. Kd3 {[%emt 0:00:03]} e2 {[%emt 0:00:09]} 61. Bd2 {[%emt 0:00:24]} (61. Kxc3 $2 e1=Q+ (61... e1=R $2 {perishes.} 62. Bf4+ Kd7 63. Kxc2 $18) 62. Kxc2 Qf2+ 63. Bd2 Qxf7 $19) 61... e1=Q {[%emt 0:01:14]} 62. Bxe1 {[%emt 0:00:09]} Nxe1+ {[%emt 0:00:03]} 63. Kxc3 {[%emt 0:00:14]} Nxg2 {[%emt 0:00:05]} 64. h6 {[%emt 0:00:15] Weighted Error Value: White=0.10 (very precise) /Black=0.48  Mistake:       	White=2     	Black=2      Inaccurate:     	White=1     	Black=7      OK:         	White=22    	Black=14     Best:        	White=7     	Black=3      Strong:       	White=2     	Black=1} 1-0

[Event "SixDays Budapest March GM A 2025"]
[Site "Budapest"]
[Date "2025.03.26"]
[Round "5.5"]
[White "Borgaonkar Akshay"]
[Black "Ostrovskiy, Aleksandr"]
[Result "1-0"]
[Annotator "TA"]
[ECO "B12"]
[WhiteElo "2418"]
[BlackElo "2394"]
[PlyCount "63"]
[EventDate "2025.03.23"]
[EventCountry "HUN"]
[SourceTitle "playchess.com"]
[Source "ChessBase"]
[SourceQuality "1"]
[TimeControl "5400+30"]

{[%evp 9,63,-6,6,0,46,50,35,37,40,27,25,38,34,37,77,40,110,67,113,0,0,-49,-46,-76,-70,-60,-68,-58,-26,-28,-22,-23,-21,-31,-22,-68,-38,-47,0,0,0,0,266,241,229,174,171,160,263,279,300,263,337,241,233,238]} 1. e4 {[%emt 0:00:47]} c6 {[%emt 0:21:26]} 2. d4 {[%emt 0:00:18]} d5 {[%emt 0:00:08]} 3. e5 {[%emt 0:00:27]} c5 {[%emt 0:01:49]} 4. Nf3 {[%emt 0:00:12]} cxd4 {[%emt 0:00:41]} 5. Qxd4 {[%emt 0:00:11]} Nc6 {[%emt 0:00:09]} 6. Qf4 {[%emt 0:00:20] B12: Caro-Kann: Advance Variation.} f6 {[%emt 0:00:06]} (6... e6 $11) 7. Nc3 {[%emt 0:04:04]} a6 {[%emt 0:00:41] Wards off Bb5} 8. Qg3 $146 {[%emt 0:01:45] White is slightly better.} (8. Bd2 e6 9. O-O-O fxe5 10. Nxe5 Nf6 11. Qa4 Qc7 12. f4 Rb8 13. Re1 Bd6 14. Bxa6 {0-1 Fernandez Sanchez,F (2421)-Mareco,S (2619) Arica op 8th 2022 (4)}) 8... fxe5 {[%emt 0:01:40]} 9. Nxe5 {[%emt 0:00:20]} Nf6 {[%emt 0:00:37]} 10. Be2 {[%emt 0:06:04]} Bf5 {[%emt 0:01:43]} 11. O-O {[%emt 0:06:03]} e6 {[%emt 0:13:20]} 12. Bf4 {[%emt 0:06:23]} Rc8 {[%emt 0:16:26]} (12... g6 $1 $14) 13. Rfe1 {[%emt 0:13:05] White has more active pieces.} g6 {[%emt 0:04:07] [#]} (13... Nb4 $14) 14. Rad1 {[%emt 0:14:37]} ({Better is} 14. Bd3 $1 $16) 14... Bg7 $11 {[%emt 0:05:59]} 15. h4 {[%emt 0:06:26]} (15. Bg4 $11 O-O 16. Bxf5 gxf5 17. Qh3) 15... O-O $15 {[%emt 0:03:12]} 16. Bf3 {[%emt 0:10:58]} Bxc2 {[%emt 0:11:41]} 17. Rd2 {[%emt 0:00:44]} Bf5 {[%emt 0:00:19]} 18. Nc4 {[%emt 0:02:33]} Nd4 {[%emt 0:07:01]} 19. Rxd4 {[%emt 0:00:43]} Rxc4 {[%emt 0:00:30]} 20. Rxc4 {[%emt 0:02:57]} dxc4 {[%emt 0:00:02]} 21. Be5 {[%emt 0:00:19][%cal Oh4h5]} (21. Bxb7 $2 Nh5 22. Qh2 Qb6 $19) 21... b5 {[%emt 0:02:01]} 22. h5 {[%emt 0:01:07]} (22. Rd1 $11 Bd3 23. Be2) 22... b4 {[%emt 0:04:37]} 23. Rd1 {[%emt 0:00:48]} Qc8 {[%emt 0:02:36]} (23... Qe8 $15 {might be stronger.} 24. Bxf6 Bxf6) 24. Ne2 {[%emt 0:01:30][%cal Bc3e2,Be2d4,Bd4c6,Bc6b4][%mdl 32]} Rd8 {[%emt 0:00:43][%cal Bf8d8,Bd8d7,Bd7f7][%mdl 32]} 25. Nd4 {[%emt 0:00:23][%cal Oh5h6] aiming for h6!.} Bd3 $2 {[%emt 0:00:53][%mdl 8192] [#]} (25... Nxh5 $11 {and Black has nothing to worry.} 26. Bxh5 Bxe5 27. Qxe5 gxh5) 26. h6 $1 $18 {[%emt 0:05:30][%mdl 512]} Bh8 {[%emt 0:00:02]} 27. Nc6 {[%emt 0:01:06]} Rd7 {[%emt 0:00:47] Repels Ne7+} 28. Nxb4 {[%emt 0:02:33]} Qc5 {[%emt 0:00:10]} (28... Be4 $16 {keeps fighting.} 29. Rc1 (29. Rxd7 Qxd7 30. Qh4 Bxf3 $18) 29... a5) 29. Bc3 {[%emt 0:00:24]} Qd6 {[%emt 0:01:01]} 30. Qh4 {[%emt 0:00:47]} Rf7 {[%emt 0:00:32]} 31. Qxc4 {[%emt 0:01:08]} Bxc4 {[%emt 0:00:27]} 32. Rxd6 {[%emt 0:00:02] Weighted Error Value: White=0.24 (precise) /Black=0.34  Loses game:     	---       	Black=1      Mistake:       	White=3     	Black=5      Inaccurate:     	White=3     	Black=3      OK:         	White=10    	Black=10     Best:        	White=2     	Black=1} 1-0